Cogmind - Beta 14 X2 @@@ ROGUE MODE // 2024.08.04 @ 19:37:00 Player: Olafz Result: Destroyed by Y-45 Defender with Heavy Assault Rifle Performance ------------- Evolutions (2) 1000 Regions Visited (5) 1000 Robots Destroyed (0) 0 Value Destroyed (10) 10 Prototype IDs (1) 20 Alien Tech Used (0) 0 Bonus (470) 470 TOTAL SCORE: 2500 Bonus ------- Pacifist 470 Cogmind --------- Core Integrity 0/550 Matter 235/300 Energy 272/280 System Corruption 0% Temperature Cool (18) Movement Walking (120) Location -8/Storage Parts ------- > --- POWER (1) -------- Heavy Ion Engine > --- PROPULSION (2) --- Carbon-fiber Leg > --- UTILITY (6) ------ Structural Scanner Trap Scanner > --- WEAPON (2) ------- Heavy Flail > --- INVENTORY (5) ---- Light Treads Compact Wheel Structural Scanner Improved Propulsion Shielding Peak State ------------ > --- POWER ------------ Heavy Ion Engine > --- PROPULSION ------- Carbon-fiber Leg Carbon-fiber Leg > --- UTILITY ---------- Structural Scanner Trap Scanner Hacking Suite > --- WEAPON ----------- Heavy Flail > --- INVENTORY -------- Light Treads Carbon-fiber Leg Compact Wheel Structural Scanner Improved Propulsion Shielding [Rating: 19] Favorites ----------- Power Light Ion Engine Engine Light Ion Engine Propulsion Carbon-fiber Leg Leg Carbon-fiber Leg Wheel Compact Wheel Utility Small Storage Unit Device Structural Scanner Storage Small Storage Unit Hackware Hacking Suite Weapon Heavy Flail Ballistic Gun Light Assault Rifle Impact Weapon Heavy Flail Build | -11 -10 -10 -9 -8 -8 ------- Run | Yrd Mat Min Mat Mat Sto Slots Evolved 4 | . . . 2 2 . Power . | . . . . . . Propulsion . | . . . . . . Utility 4 | . . . 2 2 . Weapon . | . . . . . . Parts Attached 14 | . . . 5 1 8 Power 3 | . . . 1 1 1 Engine 3 | . . . 1 1 1 Core . | . . . . . . Reactor . | . . . . . . Propulsion 7 | . . . 4 . 3 Treads . | . . . . . . Leg 5 | . . . 2 . 3 Wheel 2 | . . . 2 . . Hover . | . . . . . . Flight . | . . . . . . Utility 3 | . . . . . 3 Device 2 | . . . . . 2 Storage . | . . . . . . Processor . | . . . . . . Hackware 1 | . . . . . 1 Protection . | . . . . . . Artifact . | . . . . . . Weapon 1 | . . . . . 1 Energy Gun . | . . . . . . Energy Cannon . | . . . . . . Ballistic Gun . | . . . . . . Ballistic Cannon . | . . . . . . Launcher . | . . . . . . Special Weapon . | . . . . . . Impact Weapon 1 | . . . . . 1 Slashing Weapon . | . . . . . . Piercing Weapon . | . . . . . . Special Melee Weapon . | . . . . . . Unidentified Prototypes 1 | . . . . . 1 Parts Lost 11 | . . . 4 4 3 Power 2 | . . . 1 1 . Propulsion 7 | . . . 3 2 2 Utility 2 | . . . . 1 1 Weapon . | . . . . . . Highest Loss Streak 4 | . . . 4 4 3 To Critical Strikes . | . . . . . . Average Slot Usage (%) 38 | . 57 57 41 29 38 Engine 8 | . 14 14 11 6 6 Leg 17 | . 28 28 18 14 18 Storage 7 | . 14 14 11 8 . Hackware 1 | . . . . . 5 Impact Weapon 2 | . . . . . 7 Naked Turns 8 | . . . . 8 . Heaviest Build 14 | 8 8 8 10 14 14 Greatest Support 32 | 20 20 20 32 30 30 Greatest Overweight (x) 1 | . . . . 1 . Average Overweight (x) . | . . . . . . Largest Inventory Capacity 8 | 8 8 8 8 8 5 Average Capacity 6 | 8 8 8 8 7 5 Most Carried 8 | 7 5 5 7 8 5 Average Carried 5 | 6 5 5 4 7 3 Final Capacity 8 | 8 8 8 8 5 5 Final Carried 7 | 5 5 5 7 5 4 Class Distribution -------------------- 100% | Mutant Dominant Class ---------------- Mutant | -10/Materials Mutant | -10/Mines Mutant | -9/Materials Mutant | -8/Materials Mutant | -8/Storage Resources | -11 -10 -10 -9 -8 -8 ----------- Run | Yrd Mat Min Mat Mat Sto Matter Collected 250 | 200 . . . 50 . Remotely . | . . . . . . Salvage Created . | . . . . . . Parts . | . . . . . . Haulers Intercepted . | . . . . . . Recyclers Shooed . | . . . . . . Parts Field Recycled . | . . . . . . Retrieved Matter . | . . . . . . Parts Self-Destructed . | . . . . . . Prevented . | . . . . . . Kills | -11 -10 -10 -9 -8 -8 ------- Run | Yrd Mat Min Mat Mat Sto Combat Hostiles Destroyed . | . . . . . . Classes Destroyed . | . . . . . . Best Kill Streak . | . . . . . . Combat Bots Only . | . . . . . . Max Kills in Single Turn . | . . . . . . Gunslinging . | . . . . . . Exploded . | . . . . . . Melee . | . . . . . . Uniques/NPCs Destroyed . | . . . . . . Combat | -11 -10 -10 -9 -8 -8 -------- Run | Yrd Mat Min Mat Mat Sto Hostile Shots Fired 185 | . . . 65 82 38 Missed 65 | . . . 26 28 11 Damage Taken 1867 | . . . 523 960 384 Core 742 | . . . 184 506 52 Absorbed by Shields . | . . . . . . Core Remaining (%) 84 | 100 . 100 54 . . Volleys Fired . | . . . . . . Largest . | . . . . . . Hottest . | . . . . . . Shots Fired . | . . . . . . Gun . | . . . . . . Cannon . | . . . . . . Launcher . | . . . . . . Special . | . . . . . . Kinetic . | . . . . . . Thermal . | . . . . . . Explosive . | . . . . . . Electromagnetic . | . . . . . . Robot Hit Streak . | . . . . . . Robot Miss Streak . | . . . . . . Penetration Max . | . . . . . . Secondary Targets . | . . . . . . Shots Hit Robots . | . . . . . . Core Hits . | . . . . . . Critical Kills . | . . . . . . Critical Parts Destroyed . | . . . . . . Critical Strikes . | . . . . . . Melee Attacks 1 | . . . . . 1 Impact 1 | . . . . . 1 Slashing . | . . . . . . Piercing . | . . . . . . Sneak Attacks . | . . . . . . Combat Hostiles . | . . . . . . Follow-up Attacks . | . . . . . . Damage Inflicted . | . . . . . . Guns . | . . . . . . Cannons . | . . . . . . Explosions . | . . . . . . Melee . | . . . . . . Ramming . | . . . . . . Kinetic . | . . . . . . Thermal . | . . . . . . Explosive . | . . . . . . Electromagnetic . | . . . . . . Impact . | . . . . . . Slashing . | . . . . . . Piercing . | . . . . . . Highest Corruption . | . . . . . . Average Corruption . | . . . . . . Corruption Purged . | . . . . . . Corruption Blocked . | . . . . . . Overload Shots . | . . . . . . Overflow Damage . | . . . . . . Projectiles . | . . . . . . Explosions . | . . . . . . Melee . | . . . . . . Knockbacks . | . . . . . . Impact . | . . . . . . Kinetic . | . . . . . . Secondary . | . . . . . . Self-Inflicted Damage . | . . . . . . Shots . | . . . . . . Rammed . | . . . . . . Targets Rammed . | . . . . . . Kicked . | . . . . . . Crushed . | . . . . . . Highest Temperature 19 | . . . 19 4 . Average Temperature 8 | . . . 10 4 . Received Heat Transfer 516 | . . . 264 171 81 Siege Activations . | . . . . . . Robots Corrupted . | . . . . . . Combat Hostiles . | . . . . . . Parts Fried . | . . . . . . Impact Corruptions . | . . . . . . Robots Melted . | . . . . . . Combat Hostiles . | . . . . . . Parts Melted . | . . . . . . Heat Transferred . | . . . . . . Parts Sabotaged . | . . . . . . Parts Stolen . | . . . . . . Parts Stripped . | . . . . . . Power Chain Reactions . | . . . . . . Alert | -11 -10 -10 -9 -8 -8 ------- Run | Yrd Mat Min Mat Mat Sto Peak Influence 138 | . 15 5 81 138 92 Initial 47 | . . 5 1 33 47 Average 59 | . 6 5 35 84 74 Maximum Alert Level . | . . . . . . Low Security (%) 100 | 100 100 100 100 100 100 Level 1 . | . . . . . . Level 2 . | . . . . . . Level 3 . | . . . . . . Level 4 . | . . . . . . Level 5 . | . . . . . . High Security . | . . . . . . Max Security . | . . . . . . Squads Dispatched 5 | . 1 . 1 2 1 Investigation . | . . . . . . Extermination . | . . . . . . Reinforcement 5 | . 1 . 1 2 1 Assault . | . . . . . . Garrison . | . . . . . . Intercept . | . . . . . . Searches Triggered . | . . . . . . Construction Impeded . | . . . . . . Haulers Reinforced . | . . . . . . Active Scanning Responses . | . . . . . . Cargo Convoy Interrupts . | . . . . . . Stealth | -11 -10 -10 -9 -8 -8 --------- Run | Yrd Mat Min Mat Mat Sto Distress Signals 1 | . . . . 1 . Communications Jammed . | . . . . . . Distress Signals . | . . . . . . Times Spotted 20 | . 2 . 7 8 3 Peak Tracking Total 8 | . 2 . 7 8 3 Tactical Retreats 3 | . . . 1 2 . Traps | -11 -10 -10 -9 -8 -8 ------- Run | Yrd Mat Min Mat Mat Sto Traps Triggered . | . . . . . . Indirectly . | . . . . . . Trap Hack Attempts . | . . . . . . Triggered . | . . . . . . Disarmed . | . . . . . . Reprogrammed . | . . . . . . Reused . | . . . . . . Traps Extracted . | . . . . . . Installed . | . . . . . . Triggered . | . . . . . . Machines | -11 -10 -10 -9 -8 -8 ---------- Run | Yrd Mat Min Mat Mat Sto Machines Disabled 1 | . . . . . 1 Max in Single Turn 1 | . . . . . 1 Machines Repaired . | . . . . . . Machines Dismantled . | . . . . . . Machines Sabotaged . | . . . . . . Overloaded Fab Kills . | . . . . . . Hacking | -11 -10 -10 -9 -8 -8 --------- Run | Yrd Mat Min Mat Mat Sto Machines Accessed . | . . . . . . Terminals . | . . . . . . Fabricators . | . . . . . . Repair Stations . | . . . . . . Recycling Units . | . . . . . . Scanalyzers . | . . . . . . Garrison Access . | . . . . . . Total Hacks . | . . . . . . Successful . | . . . . . . Failed . | . . . . . . Catastrophic . | . . . . . . Database Lockouts . | . . . . . . Manual . | . . . . . . Terminals . | . . . . . . Fabricators . | . . . . . . Repair Stations . | . . . . . . Recycling Units . | . . . . . . Scanalyzers . | . . . . . . Garrison Access . | . . . . . . Terminal Hacks . | . . . . . . Fabricator Hacks . | . . . . . . Repair Station Hacks . | . . . . . . Recycling Unit Hacks . | . . . . . . Scanalyzer . | . . . . . . Garrison Access Hacks . | . . . . . . Unauthorized Hacks . | . . . . . . Terminals . | . . . . . . Fabricators . | . . . . . . Repair Stations . | . . . . . . Recycling Units . | . . . . . . Scanalyzers . | . . . . . . Garrison Access . | . . . . . . Data Cores Recovered . | . . . . . . Used . | . . . . . . Hacking Detections . | . . . . . . Full Trace Events . | . . . . . . Feedback Events . | . . . . . . Feedback Blocked . | . . . . . . Robot Schematics Acquired . | . . . . . . Robots Built . | . . . . . . Authchips . | . . . . . . Time . | . . . . . . Total Robot Build Rating . | . . . . . . Part Schematics Acquired . | . . . . . . Parts Built . | . . . . . . Authchips . | . . . . . . Time . | . . . . . . Total Part Build Rating . | . . . . . . Parts Repaired . | . . . . . . Time . | . . . . . . Parts Recycled . | . . . . . . Recycled Matter . | . . . . . . Retrieved Matter . | . . . . . . Retrieved Components . | . . . . . . Parts Scanalyzed . | . . . . . . Part Schematics Acquired . | . . . . . . Parts Damaged . | . . . . . . Bothacking | -11 -10 -10 -9 -8 -8 ------------ Run | Yrd Mat Min Mat Mat Sto Used RIF Installer . | . . . . . . Robots Hacked . | . . . . . . Non-combat . | . . . . . . Combat . | . . . . . . Robot Hacks Applied . | . . . . . . Relay Couplers Released . | . . . . . . Fabnet Peak Effective % . | . . . . . . Robots Rewired . | . . . . . . Allies Hacked . | . . . . . . Hacks Repelled . | . . . . . . Allies | -11 -10 -10 -9 -8 -8 -------- Run | Yrd Mat Min Mat Mat Sto Total Allies . | . . . . . . Largest Group . | . . . . . . Highest-Rated Group . | . . . . . . Highest-Rated Ally . | . . . . . . Total Orders . | . . . . . . Ally Attacks . | . . . . . . Total Damage . | . . . . . . Kills . | . . . . . . Allies Corrupted . | . . . . . . Allies Melted . | . . . . . . Intel | -11 -10 -10 -9 -8 -8 ------- Run | Yrd Mat Min Mat Mat Sto Robot Analysis Total . | . . . . . . Derelict Logs Recovered . | . . . . . . Drone Launches . | . . . . . . Drone Recoveries . | . . . . . . Exploration | -11 -10 -10 -9 -8 -8 ------------- Run | Yrd Mat Min Mat Mat Sto Turns Passed 568 | 3 39 10 174 156 186 Spaces Moved 463 | 1 33 9 139 139 142 Core 27 | . . . . 27 . Treads . | . . . . . . Legs 414 | 1 33 9 117 112 142 Wheels 22 | . . . 22 . . Hover . | . . . . . . Flight . | . . . . . . Fastest Speed 50 | 120 120 120 100 50 120 Average Speed 116 | 120 120 120 116 110 120 Slowest Speed 120 | 120 120 120 120 120 120 Overloaded Moves . | . . . . . . Propulsion Burnouts . | . . . . . . Robots Hopped . | . . . . . . Cave-ins Triggered . | . . . . . . Exploration Rate (%) 15 | 2 12 15 21 20 24 Regions Visited 5 Branch Regions 2 Pre-discovered Areas . | . . . . . . Known Exits Taken . | . . . . . . Unknown Exits Taken 5 | 1 1 1 1 1 . Scrap Searched . | . . . . . . Spaces Dug . | . . . . . . Terrain Destroyed . | . . . . . . Melee . | . . . . . . Projectile . | . . . . . . AOE . | . . . . . . Terrain Rammed . | . . . . . . Walls Destroyed . | . . . . . . Machines Disabled . | . . . . . . Actions | -11 -10 -10 -9 -8 -8 --------- Run | Yrd Mat Min Mat Mat Sto Total 491 | 5 32 8 150 142 154 Wait 3 | . . . 2 1 . Move 458 | . 32 8 138 138 142 Hop . | . . . . . . Pick Up 8 | . . . 4 1 3 Fast Attach 6 | . . . 2 . 4 Attach 7 | . . . 3 . 4 Detach 3 | 2 . . 1 . . Swap 1 | . . . . 1 . Drop 4 | 3 . . . 1 . Fire . | . . . . . . Melee 1 | . . . . . 1 Ram . | . . . . . . Kick . | . . . . . . Crush . | . . . . . . Escape Stasis . | . . . . . . Rewire . | . . . . . . Trap . | . . . . . . Miscellaneous . | . . . . . . Route ------- -11/Scrapyard -10/Materials -10/Mines -9/Materials -8/Materials -8/Storage History --------- Turn | Location | Event 4 | -11/Scrapyard | Discovered new exit (range 0) 4 | -11/Scrapyard | Entered Materials 25 | -10/Materials | Discovered new exit (range 16) 43 | -10/Materials | Entered Mines 43 | -10/Mines | Discovered new exit (range 9) 53 | -10/Mines | Entered Materials 53 | -9/Materials | Evolved 2 slots: Utility x2 196 | -9/Materials | Lost 4 parts (1p3n) 221 | -9/Materials | Discovered new exit (range 6) 227 | -9/Materials | Entered another Materials area 227 | -8/Materials | Evolved 2 slots: Utility x2 313 | -8/Materials | Build established: Mutant 370 | -8/Materials | Core integrity fell below 50% 379 | -8/Materials | Discovered new exit (range 11) 381 | -8/Materials | Core integrity fell below 20% 383 | -8/Materials | Entered Storage 406 | -8/Storage | Lost 4 parts (1p2n1u) 569 | -8/Storage | Destroyed by Y-45 Defender with Heavy Assault Rifle Last Messages --------------- O-16 Technician: "IFF HANDSHAKE FAILED. SECURING TERMINAL." Storage Shell breached. Acquired Prototype Engine. Identified Hvy. Ion Engine. ALERT: Hostiles spotted, dispatching reinforcements to Terminal S011. Acquired Imp. Propulsion Shielding. Acquired Hacking Suite. Acquired Carbon-fiber Leg. Penetrated by Slug. Slug penetrates Wall. Acquired Structural Scanner. Acquired Trap Scanner. Slug penetrates Door. U-05 Engineer builds a Door. Slug penetrates Wall. Hacking Suite destroyed. Slug penetrates Wall. Carbon-fiber Leg destroyed. K-01 Serf collects debris. Carbon-fiber Leg destroyed. Map ----- +----------------------------------------------------+ | | | | | ??????????????????????????????? | | ??????????????????????????????? | | ??????????????????????????????? | | ??????????????????????????????? | | ??????????????????????????????? | | ??????????????????????????????? | | ??????????????????????????????? | | ??????????????????????????????? | | ??????????????????????????????? | | ##########????????????????????? | | ##########????????????????????? | | ##!! !!!##????????????????????? | | ##! !!##????????????????????? | | ##! !##????????????????????? | | ## !##????????????????????? | | ####" "###????????????????????? | | ###T ##????????????????????? | | ?### # ????????????????????? | | ?####+#### # #####?????????? | | ??## ####+###+#####?????????? | | ??## # ##?????????? | | ??## Y # ##?????????? | | ??##h # ##?????????? | | ??## @u ##?????????? | | ??## Y# ##?????????? | | ??## # k ##?????????? | | ??## # ##?????????? | | ??## ##############?????????? | | ??## # ? ####?????????? | | ??## # #??? ????????? | | ??## # #??? ????????? | | ??## # #??? ????????? | | ??## # // #??? ????????? | | ??## / // #??? ????????? | | ??## # / ???????? | | ??## # ###? ????????? | | ??## ####"T"## #??# #???????? | | ??## ##???###?????# #???????? | | ??## ##???????????# #???????? | | ??## #????????????# #???????? | | ??## ############## +???????? | | ??## # !## #???????? | | ???# # ## #???????? | | ???# + + #???????? | | ???# # ##/####????? | | ???# # [ # #????? | | ???# # ] !# #????? | | ???# # # ! #????? | +----------------------------------------------------+ Best States ------------- Heat Dissipation 31 Energy Generation 14 Energy Capacity 280 Matter Stores 300 Matter Capacity 300 Sight Range 16 Terrain Scan Density 10 Evasion (%) 55 Offensive Hacking 10 Item Schematics ----------------- None Robot Schematics ------------------ None Fabricated ------------ Nothing Alien Tech Used ----------------- None Achievements -------------- None Challenges ------------ None Game ------ Seed CoolingImpulseAutohacker Manual? 0 Play Time 00:07:35 Cumulative 163.1 hours Start 2024.08.04 @ 19:30:49 End 2024.08.04 @ 19:37:00 Sessions 1 Manual Loads 0 Difficulty Rogue Special Mode None Game No. 264 Rogue 262 Adventurer 2 Explorer 0 Win Type - Total 5 Types 4/0/0/1/0/0/0/0/0 Lore% 56 Gallery% 61 Achievement% 52 Wizard Run 0 Options --------- Layout 0 ASCII 0 Keyboard 1 Movement Numpad Keybinds 1 Fullscreen 2 Font 18/SmallcapsGlow Map View 76x50 Zoom Use 0% Tactical HUD 1 Map Filters NONE Filters NONE Steam 1 RUN: 24cb5ff3-1853-4b64-b8a9-8eb6467d90e9